bitfinex/quotes_SOLUSD_20250912
["timestamp","ask_amount","ask_price","bid_price","bid_amount"]
[1757686182951,0.7,241.21,241.14,19.88004524]
[1757686183156,7.06111662,241.21,241.16,19.88004524]
[1757686183336,14.50900627,241.23,241.01,13.59559401]
[1757686183337,0.7,241.2,241.18,19.88004524]
[1757686183535,4.14545282,241.23,241.19,36.72]
[1757686183740,10.50613159,241.26,241.22,19.88004524]
[1757686183938,0.7,241.25,241.22,19.88004524]
[1757686184146,4.14487345,241.27,241.22,19.88004524]
[1757686184356,7.06111662,241.26,241.22,19.88004524]
[1757686184563,0.7,241.25,241.18,19.88004524]
[1757686184769,6.36111662,241.2,241.16,19.88004524]
[1757686184945,6.36111662,241.18,241.16,19.88004524]
[1757686185147,4.14487345,241.27,241.18,19.88004524]
[1757686185344,4.14487345,241.27,241.0,20.0]
[1757686185345,0.7,241.25,241.21,19.88004524]
[1757686185649,4.14487345,241.27,241.23,19.88004524]
[1757686185952,0.7,241.28,241.23,56.58004524]
[1757686186170,14.50566619,241.29,241.23,56.58004524]
[1757686186356,4.14439056,241.29,241.26,19.88004524]
[1757686186569,6.36111662,241.27,241.22,19.88004524]
[1757686186741,6.36111662,241.25,241.2,36.68]
[1757686187054,6.36111662,241.23,241.18,19.88004524]
[1757686187257,0.7,241.22,241.18,19.88004524]
[1757686187568,0.11995476,241.33,241.09,0.66]
[1757686187569,0.7,241.35,241.24,19.88004524]
[1757686187771,0.7,241.34,241.25,19.34]
[1757686188064,15.20296274,241.33,241.27,19.88004524]
[1757686188354,15.20296274,241.33,241.29,19.88004524]
[1757686188546,4.14339708,241.35,241.32,19.88004524]
[1757686188866,4.14250207,241.4,241.37,19.88004524]
[1757686189155,4.14218192,241.42,241.36,19.88004524]
[1757686189348,14.49757915,241.42,241.36,19.88004524]
[1757686189549,14.49757915,241.42,241.35,26.0]
[1757686189857,14.49757915,241.42,241.37,19.88004524]
[1757686190164,14.49757915,241.42,241.35,26.0]
[1757686190165,0.7,241.41,241.35,26.0]
[1757686190453,6.36111662,241.4,241.34,19.88004524]
[1757686190656,0.7,241.41,241.34,19.88004524]
[1757686191051,0.7,241.41,241.37,19.88004524]
[1757686191251,0.7,241.41,241.35,19.88004524]
[1757686191438,7.06111662,241.41,241.35,19.88004524]
[1757686191638,0.7,241.41,241.35,19.88004524]
[1757686191853,13.59559401,241.33,241.22,19.88004524]
[1757686192057,13.59559401,241.31,241.24,19.88004524]
[1757686192259,0.7,241.3,241.24,19.88004524]
[1757686192756,0.7,241.3,241.21,19.88004524]
[1757686192959,0.7,241.3,241.24,19.88004524]
[1757686193344,48.81561554,241.34,241.21,19.88004524]
[1757686193551,4.14353194,241.34,241.32,19.88004524]
[1757686193746,10.35723048,241.38,241.34,19.88004524]
[1757686193747,4.14325355,241.36,241.34,19.88004524]
[1757686193954,6.36111662,241.41,241.34,19.88004524]
[1757686194357,35.20835058,241.42,241.34,19.88004524]
[1757686194562,14.49755612,241.42,241.36,19.88004524]
[1757686195462,0.68,241.41,241.34,19.88004524]
[1757686195673,14.49755612,241.42,241.32,19.88004524]
[1757686195871,14.49875724,241.4,241.33,19.88004524]
[1757686196071,4.14209754,241.43,241.35,19.88004524]
[1757686196365,4.14209754,241.43,241.33,0.66]
[1757686196366,4.14209754,241.43,241.38,19.88004524]
[1757686196670,4.14209754,241.43,241.38,20.54004524]
[1757686196880,4.14209754,241.43,241.38,19.88004524]
[1757686197883,6.36111662,241.39,241.35,19.88004524]
[1757686198262,6.36111662,241.39,241.33,19.88004524]
[1757686198453,6.36111662,241.35,241.27,19.88004524]
[1757686198651,6.36111662,241.32,241.27,19.88004524]
[1757686198859,0.68,241.34,241.25,19.88004524]
[1757686199080,6.36111662,241.32,241.25,19.88004524]
[1757686199247,0.68,241.34,241.25,19.88004524]
[1757686199448,6.36111662,241.35,241.29,19.88004524]
[1757686199958,6.36111662,241.33,241.29,19.88004524]
[1757686200215,6.36111662,241.31,241.25,19.88004524]
[1757686200464,6.36111662,241.26,241.17,19.88004524]
[1757686200766,15.1823618,241.34,241.23,19.88004524]
[1757686201082,6.36111662,241.4,241.3,19.88004524]
[1757686201083,0.68,241.4,241.3,19.88004524]
[1757686201278,0.68,241.4,241.24,36.76]
[1757686201279,0.68,241.4,241.32,19.88004524]
[1757686201581,6.36111662,241.33,241.28,19.88004524]
[1757686201982,10.50413356,241.37,241.3,19.88004524]
[1757686202141,4.14301694,241.37,241.3,19.88004524]
[1757686202565,4.14301694,241.37,241.32,19.88004524]
[1757686202951,4.14301694,241.37,241.33,0.66]
[1757686203564,4.14209064,241.43,241.35,26.0]
[1757686203757,4.14209064,241.43,241.35,45.88004524]
[1757686203974,4.14209064,241.43,241.39,19.88004524]
[1757686204161,4.14209064,241.43,241.35,19.88004524]
[1757686205360,1000.50287077,241.45,241.35,19.88004524]
[1757686205557,996.36119245,241.45,241.4,19.88004524]
[1757686205784,1000.50295073,241.45,241.42,19.88004524]
[1757686206076,996.36119245,241.45,241.42,19.88004524]
[1757686206279,1000.5028776,241.45,241.42,19.88004524]
[1757686206797,1010.85698818,241.45,241.42,19.88004524]
[1757686206972,43.88111662,241.44,241.38,19.88004524]
[1757686207285,6.36111662,241.42,241.34,19.88004524]
[1757686207466,6.36111662,241.4,241.3,19.88004524]
[1757686207679,6.36111662,241.34,241.3,19.88004524]
[1757686207976,14.50416476,241.31,241.2,20.54004524]
[1757686208171,51.32416476,241.31,241.2,20.54004524]
[1757686208376,14.50416476,241.31,241.27,19.88004524]
[1757686208577,14.50416476,241.31,241.22,19.88004524]
[1757686208763,0.11995476,241.4,241.19,36.82]
[1757686208764,0.68,241.42,241.26,19.88004524]
[1757686208962,0.68,241.42,241.19,36.82]
[1757686208963,6.36111662,241.4,241.32,19.88004524]
[1757686209172,2.16227776,241.3,241.27,20.54004524]
[1757686209489,2.16227776,241.3,241.2,19.88004524]
[1757686209490,7.04111662,241.29,241.2,19.88004524]
[1757686209784,6.36111662,241.23,241.2,19.88004524]
[1757686209992,4.14540847,241.24,241.2,19.88004524]
[1757686210565,2.1632189,241.29,241.23,19.88004524]
[1757686210866,2.1632189,241.29,241.28,26.0]
[1757686211079,2.1632189,241.29,241.28,46.54004524]
[1757686211283,2.1632189,241.29,241.28,19.88004524]
[1757686211493,2.1632189,241.29,241.26,19.88004524]
[1757686211897,2.1632189,241.29,241.26,20.54004524]
[1757686212101,6.30764822,241.29,241.26,19.88004524]
[1757686212309,16.66862463,241.29,241.26,19.88004524]
[1757686212609,2.1632189,241.29,241.26,19.88004524]
[1757686212778,6.30762597,241.29,241.26,19.88004524]
[1757686212983,6.30762597,241.29,241.24,19.88004524]
[1757686213588,6.98762597,241.29,241.24,19.88004524]
[1757686213795,7.04111662,241.28,241.21,19.88004524]
[1757686213988,7.04111662,241.28,241.18,0.03]
[1757686213989,14.50777202,241.25,241.18,0.03]
[1757686214602,4.14507772,241.25,241.18,0.03]
[1757686214801,2.1632189,241.29,241.23,19.88004524]
[1757686214984,2.1632189,241.29,241.23,20.54004524]
[1757686215692,2.1632189,241.29,241.27,19.88004524]
[1757686216209,2.1632189,241.29,241.25,19.88004524]
[1757686216210,6.30762239,241.29,241.25,19.88004524]
[1757686216382,16.6685988,241.29,241.23,19.88004524]
[1757686216578,2.1632189,241.29,241.24,0.66]
[1757686216798,2.1632189,241.29,241.25,19.88004524]
[1757686217006,12.66877722,241.29,241.23,19.88004524]
[1757686217291,6.3076606,241.29,241.26,19.88004524]
[1757686217787,6.3076606,241.29,241.24,19.88004524]
[1757686217980,12.66877722,241.29,241.22,19.88004524]
[1757686218185,6.36111662,241.25,241.18,0.03]
[1757686218382,13.59559401,241.2,241.18,0.03]
[1757686218587,19.95671063,241.19,241.18,0.03]
[1757686218791,3.3388443,241.22,241.18,0.03]
[1757686218981,6.36111662,241.21,241.18,0.03]
[1757686219292,13.59559401,241.27,241.18,0.03]
[1757686219293,6.36111662,241.23,241.18,0.03]
[1757686219493,6.36111662,241.21,241.18,0.03]
[1757686220030,16.66863701,241.29,241.23,19.88004524]
[1757686220031,2.1632189,241.29,241.23,19.88004524]
[1757686220242,5.5020632,241.29,241.28,19.88004524]
[1757686220683,5.5020632,241.29,241.2,26.0]
[1757686220684,2.1632189,241.29,241.24,19.88004524]
[1757686220885,9.82228698,241.28,241.26,19.88004524]
[1757686221084,6.36111662,241.28,241.24,19.88004524]
[1757686221312,3.46117036,241.26,241.24,19.88004524]
[1757686221616,4.6694606,241.28,241.24,19.88004524]
[1757686221989,3.46843797,241.26,241.24,19.88004524]
[1757686222192,3.46843797,241.25,241.24,19.88004524]
[1757686222494,3.46843797,241.26,241.24,19.88004524]
[1757686222794,3.46843797,241.27,241.26,19.88004524]
[1757686223308,3.46843797,241.28,241.26,19.88004524]
[1757686224018,2.1632189,241.29,241.28,19.88004524]
[1757686224217,2.1632189,241.29,241.28,20.54004524]
[1757686224916,2.1632189,241.29,241.28,19.88004524]
[1757686225119,2.1632189,241.29,241.28,20.59004524]
[1757686225612,3.46843797,241.39,241.38,19.88004524]
[1757686225795,3.46843797,241.44,241.43,19.88004524]
[1757686225995,997.66843797,241.45,241.43,19.88004524]
[1757686226199,2.16138878,241.44,241.43,19.88004524]
[1757686226397,2.85138878,241.44,241.39,19.88004524]
[1757686226610,6.36111662,241.4,241.36,19.88004524]
[1757686226810,6.36111662,241.37,241.34,19.88004524]
[1757686227138,6.36111662,241.35,241.34,19.88004524]
[1757686227835,3.4671054,241.42,241.41,19.88004524]
[1757686228004,998.34169086,241.45,241.41,19.88004524]
[1757686228208,994.2,241.45,241.43,19.88004524]
[1757686228714,994.2,241.45,241.43,20.56004524]
[1757686228907,994.2,241.45,241.44,0.68]
[1757686230004,994.2,241.45,241.43,19.88004524]
[1757686230608,994.2,241.45,241.44,0.68]
[1757686231021,994.2,241.45,241.43,19.88004524]
[1757686231214,994.2,241.45,241.44,0.68]
[1757686232113,843.69661905,241.45,241.44,0.68]
[1757686232712,843.69661905,241.45,241.44,46.77559401]
[1757686232713,791.96201839,241.45,241.44,46.77559401]
[1757686232918,573.90076245,241.45,241.44,127.67559401]
[1757686233138,309.6503891,241.45,241.44,127.67559401]
[1757686233311,189.90279585,241.45,241.44,127.67559401]
[1757686233514,0.32980034,241.71,241.7,19.82006738]
[1757686234809,1.01980034,241.71,241.7,19.82006738]
[1757686235030,1.01980034,241.71,241.68,19.82006738]
[1757686235031,4.13736036,241.7,241.68,19.82006738]
[1757686235328,4.13736036,241.7,241.61,26.0]
[1757686235329,0.69,241.69,241.66,19.82006738]
[1757686235531,13.59559401,241.66,241.58,19.82006738]
[1757686235829,0.69,241.68,241.54,19.82006738]
[1757686235830,9.63698686,241.61,241.54,19.82006738]
[1757686236023,9.63698686,241.59,241.53,19.82006738]
[1757686236213,13.77657372,241.57,241.56,19.82006738]
[1757686236413,0.69,241.6,241.55,19.82006738]
[1757686236642,14.46613784,241.6,241.55,19.82006738]
[1757686236810,4.13915098,241.6,241.59,19.82006738]
[1757686237009,13.77613784,241.6,241.58,19.82006738]
[1757686237329,10.32698686,241.59,241.51,19.82006738]
[1757686237533,0.69,241.59,241.56,19.82006738]
[1757686237830,9.63698686,241.58,241.56,19.82006738]
[1757686238145,0.69,241.57,241.56,19.82006738]
[1757686238312,14.46657372,241.57,241.56,19.82006738]
[1757686239034,13.59559401,241.56,241.5,19.10006738]
[1757686239216,9.63698686,241.51,241.48,19.10006738]
[1757686239548,9.63698686,241.48,241.46,19.10006738]
[1757686239840,9.63698686,241.47,241.46,19.10006738]
[1757686240023,10.32698686,241.47,241.46,19.10006738]
[1757686240209,14.49515446,241.46,241.34,19.10006738]
[1757686240408,14.49515446,241.46,241.3,19.10006738]
[1757686240409,9.63698686,241.35,241.3,19.10006738]
[1757686240629,0.69,241.35,241.34,19.10006738]
[1757686240949,0.69,241.39,241.34,19.10006738]
[1757686241135,0.69,241.39,241.36,19.10006738]
[1757686241441,35.20251799,241.46,241.36,19.10006738]
[1757686241442,14.49515446,241.46,241.36,19.10006738]
[1757686241613,0.69,241.43,241.36,19.10006738]
[1757686241940,0.69,241.44,241.39,19.10006738]
[1757686242230,9.63698686,241.4,241.39,19.10006738]
[1757686242420,4.14267368,241.39,241.34,56.04006738]
[1757686242621,4.14267368,241.39,241.37,19.10006738]
[1757686242822,9.63698686,241.38,241.37,19.10006738]
[1757686243125,10.32698686,241.38,241.34,19.10006738]
[1757686243323,9.63698686,241.35,241.34,19.10006738]
[1757686243913,18.42771081,241.43,241.4,19.10006738]
[1757686244122,9.63698686,241.41,241.4,19.10006738]
[1757686244331,13.59559401,241.4,241.35,19.10006738]
[1757686244512,9.63698686,241.36,241.35,19.10006738]
[1757686244936,10.32698686,241.36,241.35,19.10006738]
[1757686245247,9.63698686,241.36,241.35,19.10006738]
[1757686245438,10.32698686,241.36,241.31,19.10006738]
[1757686245646,9.63698686,241.32,241.31,19.10006738]
[1757686245942,10.32698686,241.32,241.3,19.10006738]
[1757686246149,13.59559401,241.3,241.25,19.10006738]
[1757686246332,0.69,241.29,241.27,19.10006738]
[1757686246537,4.14387535,241.32,241.28,19.10006738]
[1757686246715,9.63698686,241.29,241.28,19.10006738]
[1757686246912,4.14361058,241.34,241.3,19.10006738]
[1757686247114,13.59559401,241.37,241.3,19.10006738]
[1757686247344,9.63698686,241.31,241.3,19.10006738]
[1757686247836,9.63698686,241.34,241.33,19.10006738]
[1757686248013,4.14259943,241.4,241.38,19.10006738]
[1757686248223,9.63698686,241.39,241.36,19.10006738]
[1757686248444,9.63698686,241.37,241.36,19.10006738]
[1757686248619,10.32698686,241.37,241.36,19.10006738]
[1757686248810,10.32698686,241.37,241.34,19.10006738]
[1757686249132,9.63698686,241.35,241.34,19.10006738]
[1757686249326,10.32698686,241.35,241.34,19.10006738]
[1757686249525,9.63698686,241.35,241.31,19.10006738]
[1757686249712,13.59559401,241.36,241.34,19.10006738]
[1757686249917,0.69,241.37,241.34,19.10006738]
[1757686250119,9.63698686,241.35,241.34,19.10006738]
[1757686250426,4.14353194,241.34,241.29,55.92006738]
[1757686250732,9.63698686,241.31,241.29,19.10006738]
[1757686250912,4.14353194,241.34,241.29,19.10006738]
[1757686251115,9.63698686,241.31,241.29,19.10006738]
[1757686251416,0.69,241.35,241.32,19.10006738]
[1757686251821,13.59559401,241.37,241.32,19.10006738]
[1757686252033,13.59559401,241.39,241.32,19.10006738]
[1757686252334,13.59559401,241.37,241.32,19.10006738]
[1757686252513,14.49881528,241.4,241.32,19.10006738]
[1757686252514,13.59559401,241.35,241.32,19.10006738]
[1757686252713,9.63698686,241.33,241.32,19.10006738]
[1757686253121,0.75,241.45,241.42,19.10006738]
[1757686253323,9.63698686,241.43,241.42,19.10006738]
[1757686253728,4.20178282,241.45,241.42,19.10006738]
[1757686253729,0.06,241.45,241.44,19.10006738]
[1757686254016,0.06,241.45,241.44,19.81006738]
[1757686255131,0.06,241.45,241.44,19.80006738]
[1757686257833,0.06,241.45,241.44,32.30006738]
[1757686258641,0.06,241.45,241.44,45.89566139]
[1757686258836,0.06,241.45,241.44,113.20006738]
[1757686259541,0.06,241.45,241.44,169.80006738]
[1757686259736,0.06,241.45,241.44,149.80006738]
[1757686260256,0.06,241.45,241.44,55.70006738]
[1757686260733,2.002801,241.52,241.47,26.0]
[1757686261036,2.002801,241.52,241.51,45.10006738]
[1757686261215,2.002801,241.52,241.51,81.70006738]
[1757686261835,2.002801,241.52,241.51,56.40006738]
[1757686262525,2.002801,241.52,241.51,55.70006738]
[1757686263122,2.002801,241.52,241.51,55.66006738]
[1757686263330,2.002801,241.52,241.51,19.10006738]
[1757686263529,2.702801,241.52,241.51,19.10006738]
[1757686263837,2.702801,241.52,241.48,19.10006738]
[1757686264047,2.702801,241.52,241.51,19.10006738]
[1757686264552,6.84332507,241.52,241.51,19.10006738]
[1757686264853,17.1944347,241.52,241.49,19.10006738]
[1757686265032,17.1944347,241.52,241.39,36.52]
[1757686265033,23.23258087,241.5,241.46,19.10006738]
[1757686265250,9.63698686,241.47,241.46,18.38006738]
[1757686265549,13.59559401,241.46,241.44,18.38006738]
[1757686265859,2.16158434,241.47,241.42,18.38006738]
[1757686266566,2.16158434,241.47,241.45,18.38006738]
[1757686266725,9.63698686,241.46,241.45,18.38006738]
[1757686267121,23.23258087,241.46,241.43,18.38006738]
[1757686267422,13.59559401,241.46,241.42,18.38006738]
[1757686267727,9.63698686,241.46,241.45,18.38006738]
[1757686267929,6.30291248,241.47,241.45,18.38006738]
[1757686268126,9.63698686,241.46,241.45,18.38006738]
[1757686268336,9.63698686,241.46,241.37,0.7]
[1757686268337,23.23258087,241.46,241.43,18.38006738]
[1757686268536,13.59559401,241.46,241.43,18.38006738]
[1757686268740,2.16158434,241.47,241.43,18.38006738]
[1757686268940,2.16158434,241.47,241.34,18.38006738]
[1757686269143,2.16158434,241.47,241.39,18.38006738]
[1757686269348,2.16158434,241.47,241.41,18.38006738]
[1757686269658,2.16158434,241.47,241.46,18.38006738]
[1757686270529,2.002801,241.52,241.5,18.33716738]
[1757686271837,6.14331851,241.52,241.5,18.33716738]
[1757686272155,2.002801,241.52,241.5,18.33716738]
[1757686273262,4.14061529,241.51,241.5,18.33716738]
[1757686273829,4.14061529,241.51,241.48,18.33716738]
[1757686274235,4.14061529,241.51,241.45,18.33716738]
[1757686274236,9.63698686,241.49,241.45,18.33716738]
[1757686274429,13.59559401,241.48,241.45,18.33716738]
[1757686274748,4.14061529,241.51,241.47,18.33716738]
[1757686275059,4.14061529,241.51,241.42,18.33716738]
[1757686275060,13.59559401,241.48,241.42,18.33716738]
[1757686275288,9.63698686,241.46,241.4,18.33716738]
[1757686275428,13.59559401,241.5,241.44,18.33716738]
[1757686275742,9.63698686,241.49,241.44,18.33716738]
[1757686276136,9.63698686,241.49,241.4,18.33716738]
[1757686276335,9.63698686,241.47,241.42,18.33716738]
[1757686276737,4.1414727,241.46,241.42,18.33716738]
[1757686277248,14.49515446,241.46,241.42,18.33716738]
[1757686277450,14.49515446,241.46,241.19,0.2]
[1757686277649,9.63698686,241.4,241.19,0.44]
[1757686277837,9.63698686,241.24,241.19,0.44]
[1757686278365,9.63698686,241.4,241.19,0.44]
[1757686278529,9.63698686,241.24,241.21,0.42]
[1757686278734,13.7822364,241.24,241.21,0.42]
[1757686278947,13.7822364,241.24,241.22,18.08]
[1757686279154,24.14536026,241.24,241.19,0.2]
[1757686279360,14.5083734,241.24,241.22,3.9788362]
[1757686279549,14.5083734,241.24,241.2,21.38]
[1757686280139,35.22877983,241.28,241.2,21.38]
[1757686280457,14.50596816,241.28,241.2,21.38]
[1757686281954,9.63698686,241.23,241.2,21.38]
[1757686282257,4.14559323,241.22,241.2,21.38]
[1757686284342,35.23023996,241.27,241.2,21.38]
[1757686284639,9.63698686,241.26,241.2,21.38]
[1757686285057,35.23023996,241.27,241.2,21.38]
[1757686285276,44.86722682,241.27,241.2,21.38]
[1757686286249,9.63698686,241.21,241.19,0.2]
[1757686286452,9.63698686,241.22,241.2,39.0]
[1757686286860,9.63698686,241.22,241.2,38.92]
[1757686287070,9.63698686,241.21,241.2,2.9713554]
[1757686287260,35.23023996,241.27,241.19,1e-08]
[1757686287456,9.63698686,241.2,241.19,1e-08]
[1757686287658,9.63698686,241.2,241.18,0.03]
[1757686288069,9.63698686,241.19,241.11,16.76]
[1757686288274,26.0,241.24,241.11,16.76]
[1757686288451,9.63698686,241.14,241.11,16.76]
[1757686288650,9.63698686,241.13,241.11,16.76]
[1757686289169,9.63698686,241.12,241.11,16.76]
[1757686289884,26.0,241.09,240.93,0.68]
[1757686290057,43.23258087,241.2,240.94,0.68]
[1757686290058,20.0,241.14,240.94,0.68]
[1757686290371,4.14765657,241.1,240.94,0.68]
[1757686290576,4.14765657,241.1,240.95,13.59559401]
[1757686290754,14.516798,241.1,240.99,13.59559401]
[1757686290957,14.516798,241.1,241.0,0.68]
[1757686291157,4.14696856,241.14,241.01,13.59559401]
[1757686291459,9.63698686,241.13,241.02,0.68]
[1757686291665,9.63698686,241.13,241.03,38.92]
[1757686291975,4.14696856,241.14,241.04,14.27559401]
[1757686292169,4.14696856,241.14,241.06,13.59559401]
[1757686292364,4.14696856,241.14,241.07,0.68]
[1757686293357,25.05666388,241.29,241.08,13.59559401]
[1757686293561,10.36620935,241.42,241.08,13.59559401]
[1757686293562,4.14456233,241.28,241.1,13.59559401]
[1757686293765,9.63698686,241.24,241.12,13.59559401]
[1757686293966,9.63698686,241.24,241.13,39.56]
[1757686294188,9.63698686,241.24,241.14,0.68]
[1757686294561,9.63698686,241.21,241.14,0.68]
[1757686294764,9.63698686,241.2,241.13,38.88]
[1757686295105,14.50957631,241.22,241.13,38.88]
[1757686295271,9.63698686,241.21,241.13,38.88]
[1757686295770,24.14656317,241.22,241.13,38.88]
[1757686295959,24.14656317,241.22,241.13,39.56]
[1757686296162,9.63698686,241.21,241.13,39.56]
[1757686296385,6.36426851,241.19,241.13,38.88]
[1757686296685,6.36426851,241.16,241.01,29.84]
[1757686296895,14.51198274,241.18,241.01,29.84]
[1757686296896,6.36426851,241.14,241.05,0.68]
[1757686297262,20.0,241.41,241.06,13.59559401]
[1757686297484,6.36426851,241.26,241.12,13.59559401]
[1757686297694,20.0,241.37,241.13,39.54]
[1757686297876,6.36426851,241.26,241.14,0.68]
[1757686298187,6.36426851,241.25,241.14,0.68]
[1757686298767,6.36426851,241.23,241.15,38.8]
[1757686299071,20.87264191,241.24,241.15,38.8]
[1757686300083,6.36426851,241.22,241.15,38.8]
[1757686300298,14.5083734,241.24,241.15,38.8]
[1757686300474,6.36426851,241.21,241.15,38.8]
[1757686300784,14.5083734,241.24,241.15,38.8]
[1757686300785,6.36426851,241.18,241.15,38.8]
[1757686300962,6.36426851,241.17,241.15,38.8]
[1757686301379,6.36426851,241.16,241.15,16.66005418]
[1757686301590,6.36426851,241.16,241.09,38.7]
[1757686301774,6.36426851,241.13,241.09,38.7]
[1757686302567,6.36426851,241.14,241.09,39.38]
[1757686303083,14.5149919,241.13,241.09,39.38]
[1757686303779,14.5149919,241.13,241.09,38.73]
[1757686304092,14.5149919,241.13,241.09,39.41]
[1757686304667,4.14676813,241.16,241.1,0.68]
[1757686305068,10.36632921,241.17,241.1,0.68]
[1757686306187,10.36632921,241.17,241.09,38.73]
[1757686306188,6.36426851,241.16,241.09,0.03]
[1757686306495,6.36426851,241.15,241.1,38.46]
[1757686306688,6.36426851,241.15,241.11,0.68]
[1757686306990,6.36426851,241.15,241.1,38.46]
[1757686307294,14.51438997,241.14,241.1,38.46]
[1757686307497,20.87865848,241.14,241.1,38.46]
[1757686307873,6.36426851,241.12,241.1,38.46]
[1757686308194,14.51438997,241.14,241.09,0.03]
[1757686308195,26.0,241.11,241.09,0.03]
[1757686308364,6.36426851,241.1,241.09,0.03]
[1757686309064,6.31282146,241.1,241.09,0.03]
[1757686310071,12.67708997,241.1,241.09,38.49]
[1757686310272,12.67708997,241.1,241.09,0.03]
[1757686310471,6.31282146,241.1,241.09,0.03]
[1757686310891,6.31282146,241.1,241.09,39.13]
[1757686311073,6.31282146,241.1,241.09,0.71]
[1757686311271,6.31282146,241.1,241.09,39.15]
[1757686311673,2.16516489,241.1,241.09,0.71]
[1757686312102,4.14750803,241.11,241.09,39.13]
[1757686312392,6.31175429,241.13,241.1,0.68]
[1757686312598,6.31162885,241.13,241.11,39.08]
[1757686312774,6.31162885,241.13,241.12,40.38]
[1757686312976,6.31162885,241.13,241.12,2.0]
[1757686313380,6.31162885,241.13,241.12,40.36]
[1757686313697,6.31162885,241.13,241.12,41.04]
[1757686313895,6.31162885,241.13,241.12,2.68]
[1757686314274,6.31162885,241.13,241.12,40.32]
[1757686314477,2.16448526,241.13,241.12,2.68]
[1757686314670,6.36426851,241.21,241.12,41.02]
[1757686314870,2.16411007,241.17,241.12,41.02]
[1757686315070,2.16411007,241.17,241.13,0.72]
[1757686315276,20.72263987,241.29,241.13,0.72]
[1757686315277,6.36426851,241.27,241.13,0.72]
[1757686315476,2.16370229,241.21,241.14,51.91559401]
[1757686315672,2.16370229,241.21,241.16,13.59559401]
[1757686315873,14.50356373,241.32,241.18,13.59559401]
[1757686316073,2.16313843,241.28,241.2,13.59559401]
[1757686316283,2.16313843,241.28,241.21,0.72]
[1757686316480,14.50356373,241.32,241.22,38.3]
[1757686316697,2.16304259,241.28,241.23,0.72]
[1757686316997,14.50356373,241.32,241.24,0.72]
[1757686317196,14.50356373,241.32,241.25,38.28]
[1757686317689,14.50356373,241.32,241.26,38.96]
[1757686317869,14.50356373,241.32,241.27,38.22]
[1757686318381,14.50356373,241.32,241.27,0.72]
[1757686318683,14.50356373,241.32,241.28,38.2]
[1757686318889,14.50356373,241.32,241.29,38.18]
[1757686319090,14.50356373,241.32,241.3,38.16]
[1757686319288,14.50356373,241.32,241.31,38.16]
[1757686319875,14.50356373,241.32,241.26,0.72]
[1757686320198,14.50356373,241.32,241.23,0.72]
[1757686320496,4.36426851,241.31,241.23,0.72]
[1757686320695,4.36426851,241.31,241.17,13.59559401]
[1757686320696,6.36426851,241.25,241.17,0.72]
[1757686320886,6.36426851,241.22,241.14,0.72]
[1757686321087,0.67,241.27,241.14,0.72]
[1757686321282,26.0,241.29,241.09,0.03]
[1757686321283,6.36426851,241.19,241.15,35.32]
[1757686321483,6.36426851,241.19,241.16,38.1]
[1757686321684,0.67,241.23,241.16,38.1]
[1757686321685,6.36426851,241.23,241.16,38.82]
[1757686321884,14.50777202,241.25,241.17,0.72]
[1757686322094,14.50777202,241.25,241.18,38.1]
[1757686322282,14.50777202,241.25,241.17,0.72]
[1757686322680,20.87204053,241.25,241.17,0.72]
[1757686322978,20.87204053,241.25,241.09,0.03]
[1757686322979,6.36426851,241.18,241.09,0.03]
[1757686323304,4.14731254,241.12,241.11,2.66]
[1757686323486,11.18158105,241.12,241.09,0.03]
[1757686323805,14.51559389,241.12,241.09,0.03]
[1757686324396,20.8798624,241.12,241.09,0.03]
[1757686324986,20.8798624,241.12,241.1,0.03]
[1757686325211,6.36426851,241.11,241.1,0.03]
[1757686325401,6.36426851,241.11,241.1,38.11]
[1757686325597,6.36426851,241.11,241.1,0.03]
[1757686325799,11.18175306,241.11,241.07,9.3646547]
[1757686326000,6.36426851,241.08,241.06,0.03]
[1757686326204,26.0,241.05,241.04,1e-08]
[1757686326511,6.36426851,241.05,241.04,1e-08]
[1757686326695,6.36426851,241.06,241.04,1e-08]
[1757686326897,6.36426851,241.06,240.97,0.72]
[1757686327413,6.36426851,241.06,240.92,26.53559401]
[1757686327414,6.36426851,240.98,240.94,38.18]
[1757686327711,4.14886113,241.03,240.96,13.59559401]
[1757686327913,0.41953348,241.12,240.98,13.59559401]
[1757686327914,4.14864556,241.05,240.98,13.59559401]
[1757686328123,10.36953409,241.1,241.0,13.59559401]
[1757686328328,4.14748455,241.11,241.02,13.59559401]